Workbook

Sheet Notes Balance
A1: TOTAL NOTE BALANCES
B2: Total Notes | C2: Class A1 Notes | D2: Class A2 Notes | E2: Class B Notes | F2: Class C Notes
A3: Initial Invested Amount | B3: =SUM(C3:F3) -> 423450000 | C3: 115000000 | D3: 286850000 | E3: 11250000 | F3: 10350000
A4: Invested Amount as at Previous Payment Date: 16 August 2018 | B4: =SUM(C4:F4) -> 423450000 | C4: 115000000 | D4: 286850000 | E4: 11250000 | F4: 10350000
A5: Stated Amount as at Previous Payment Date: 16 August 2018 | B5: 423450000 | C5: 115000000 | D5: 286850000 | E5: 11250000 | F5: 10350000
A6: Principal Payments to Noteholders on Payment Date | B6: 39614786.81 | C6: 39614786.81 | D6: 0 | E6: 0 | F6: 0
A7: Gross Aggregate Charge-Offs | B7: 0 | C7: 0 | D7: 0 | E7: 0 | F7: 0
A8: Gross Aggregate Reinstatements of charge-offs | B8: 0 | C8: 0 | D8: 0 | E8: 0 | F8: 0
A9: Aggregate Charge-Offs for this Collection Period | B9: 0 | C9: 0 | D9: 0 | E9: 0 | F9: 0
A10: Reinstatements relating to Charge-offs that have occurred this Collection Period | B10: 0 | C10: 0 | D10: 0 | E10: 0 | F10: 0
A11: Aggregate Carry Over Charge-offs not previously reinstated | B11: 0 | C11: 0 | D11: 0 | E11: 0 | F11: 0
A12: Reinstatements of Carry Over Charge-offs not previously reinstated | B12: 0 | C12: 0 | D12: 0 | E12: 0 | F12: 0
A13: Aggregate Charge-Offs not reinstated and to be carried over to next period | B13: 0 | C13: 0 | D13: 0 | E13: 0 | F13: 0
A14: Invested Amount as at Payment Date: 16 November 2018 | B14: 383835213.2 | C14: 75385213.19 | D14: 286850000 | E14: 11250000 | F14: 10350000
A15: Stated Amount as at Payment Date: 16 November 2018 | B15: 383835213.2 | C15: 75385213.19 | D15: 286850000 | E15: 11250000 | F15: 10350000
A16: Bond Factor at Payment Date: 16 November 2018 | C16: 0.655523593 | D16: 1 | E16: 1 | F16: 1
A17: Coupon Margin | C17: 0.0073 | D17: 0.0108 | E17: 0.017 | F17: 0.0225
A18: Coupon Rate (3 month BBSW + margin) | C18: 0.02685 | D18: 0.03035 | E18: 0.03655 | F18: 0.04205
A19: Days in Coupon Period | C19: 92 | D19: 92 | E19: 92 | F19: 92
A20: Coupon Entitlement to be paid out on the current Payment Date: 16 November 2018 | C20: 778282.19 | D20: 2194363.21 | E20: 103641.78 | F20: 109698.66
A23: TOTAL NOTE BALANCES
B24: Total Notes | C24: Class A1 Notes | D24: Class A2 Notes | E24: Class B Notes | F24: Class C Notes
A25: Initial Invested Amount | B25: =SUM(C25:F25) -> 423450000 | C25: 115000000 | D25: 286850000 | E25: 11250000 | F25: 10350000
A26: Invested Amount as at Previous Payment Date: 16 November 2018 | B26: =SUM(C26:F26) -> 383835213.2 | C26: 75385213.19 | D26: 286850000 | E26: 11250000 | F26: 10350000
A27: Stated Amount as at Previous Payment Date: 16 November 2018 | B27: 383835213.2 | C27: 75385213.19 | D27: 286850000 | E27: 11250000 | F27: 10350000
A28: Principal Payments to Noteholders on Payment Date | B28: 27133674.77 | C28: 27133674.77 | D28: 0 | E28: 0 | F28: 0
A29: Gross Aggregate Charge-Offs | B29: 0 | C29: 0 | D29: 0 | E29: 0 | F29: 0
A30: Gross Aggregate Reinstatements of charge-offs | B30: 0 | C30: 0 | D30: 0 | E30: 0 | F30: 0
A31: Aggregate Charge-Offs for this Collection Period | B31: 0 | C31: 0 | D31: 0 | E31: 0 | F31: 0
A32: Reinstatements relating to Charge-offs that have occurred this Collection Period | B32: 0 | C32: 0 | D32: 0 | E32: 0 | F32: 0
A33: Aggregate Carry Over Charge-offs not previously reinstated | B33: 0 | C33: 0 | D33: 0 | E33: 0 | F33: 0
A34: Reinstatements of Carry Over Charge-offs not previously reinstated | B34: 0 | C34: 0 | D34: 0 | E34: 0 | F34: 0
A35: Aggregate Charge-Offs not reinstated and to be carried over to next period | B35: 0 | C35: 0 | D35: 0 | E35: 0 | F35: 0
A36: Invested Amount as at Payment Date: 18 February 2019 | B36: 356701538.4 | C36: 48251538.42 | D36: 286850000 | E36: 11250000 | F36: 10350000
A37: Stated Amount as at Payment Date: 18 February 2019 | B37: 356701538.4 | C37: 48251538.42 | D37: 286850000 | E37: 11250000 | F37: 10350000
A38: Bond Factor at Payment Date: 18 February 2019 | C38: 0.419578595 | D38: 1 | E38: 1 | F38: 1
A39: Coupon Margin | C39: 0.0073 | D39: 0.0108 | E39: 0.017 | F39: 0.0225
A40: Coupon Rate (3 month BBSW + margin) | C40: 0.02671 | D40: 0.03021 | E40: 0.03641 | F40: 0.04191
A41: Days in Coupon Period | C41: 94 | D41: 94 | E41: 94 | F41: 94
A42: Coupon Entitlement to be paid out on the current Payment Date: 18 February 2019 | C42: 518555.26 | D42: 2231724.44 | E42: 105489.25 | F42: 111710.24

Sheet Cumulative Defaults
A1: Cumulative Defaults & Losses
A3: Month | B3: Gross Losses | C3: Recoveries | D3: Net Losses
A4: 2018-10-01 | B4: 0 | C4: 0 | D4: 0
A5: 2019-01-01 | B5: =B4+'Collateral Tables'!E9/450000000 -> 0 | C5: =+C4+'Collateral Tables'!E23/450000000 -> 0 | D5: =B5-C5 -> 0
A6: 2019-04-01
A7: 2019-07-01
A8: 2019-10-01

Sheet Collateral Tables
B1: CNHI CAPITAL AUSTRALIA RECEIVABLES TRUST SERIES 2018-1 (TERM DEAL)
B2: COLLATERAL DATA TABLES
B4: OUTSTANDING RECEIVABLES | E4: 2018-01-31 | I4: 2018-10-31
B6: Opening Balance | E6: ='[2]18 Feb 19'!M163 -> 410385213.2 | I6: 449999896.9
B7: Principal Repayments - Scheduled | E7: =MIN(([3]Sheet1!$B$3+[4]Sheet1!$B$3+[5]Sheet1!$B$3),'[2]18 Feb 19'!H23) -> 25925049.64 | I7: 32152734.13
B8: Principal Repayments - Unscheduled | E8: ='[2]18 Feb 19'!H23-'Collateral Tables'!E7 -> 1208625.13 | I8: 7461949.57
A9: =SUM(I9) -> 0 | B9: Charge-Offs | E9: ='[2]18 Feb 19'!$H37 -> 0 | I9: 0
B10: Reinstatements
B11: New Receivables Purchased
B12: Non Cash Change in Receivables
B13: Closing Balance | E13: =E6-E7-E8-E9+E10+E11-E12 -> 383251538.4 | I13: 410385213.2
B15: PORTFOLIO STATISTICS
B17: Summary
B18: Number of contracts | E18: =[6]Summary!$D$4 -> 3359 | I18: 3402
B19: Dollar value of contracts | E19: =[6]Summary!$G$5 -> 383251538.4 | I19: 410385213.2
B20: Number of contracts closed during the Quarter | E20: =[6]Summary!$B$19 -> 43 | I20: 64
B21: Dollar value of contracts closed during the Quarter | E21: =[6]Summary!$B$20 -> 6683029.9 | I21: 8769089.47
A23: =SUM(I23) -> 0 | B23: Dollar Value of Recoveries from Collateral | E23: =[6]Summary!$C$16 -> 0 | I23: 0
B24: Dollar Value of Recoveries from Other Sources | E24: 0 | I24: 0
B26: Average Term of Contracts (Months) | E26: =[7]Sheet1!$W$3361 -> 54.13015289 | I26: 53.78689792
B27: Average Term to Maturity (Months) | E27: =[7]Sheet1!$X$3361 -> 39.11087557 | I27: 41.77629237
B28: Average Residual / Balloon Payment * | E28: =[7]Sheet1!$AI$3361 -> 0.03977515463 | I28: 0.03973639986
B29: Average Seasoning (Months) | E29: =E26-E27 -> 15.01927732 | I29: 12.01060555
B30: Average Dollar Value of Individual Assets | E30: =E19/E18 -> 114096.9153 | I30: 120630.5741
B31: Weighted Average Interest Rate | E31: =[7]Sheet1!$AA$3361/100 -> 0.0254717226 | I31: 0.0255019974
B33: Payment in Arrears
A34: 1. 0 - 30 Days | B34: 0 - 30 Days | E34: =IFERROR(VLOOKUP(A34,'[8]Arrears Reporting'!$A$1:$D$5,3,FALSE),0) -> 3354 | F34: =IFERROR(VLOOKUP(A34,'[8]Arrears Reporting'!$A$1:$D$5,2,FALSE),0) -> 193610.89 | G34: =F34/F$50 -> 0.0005051796812 | I34: 3400 | J34: 279239.7 | K34: 0.0006804331419
A35: 2. 31 - 60 Days | B35: 31 - 60 Days | E35: =IFERROR(VLOOKUP(A35,'[8]Arrears Reporting'!$A$1:$D$5,3,FALSE),0) -> 3 | F35: =IFERROR(VLOOKUP(A35,'[8]Arrears Reporting'!$A$1:$D$5,2,FALSE),0) -> 8888.98 | G35: =F35/F$50 -> 2.319359248e-05 | I35: 1 | J35: 45938.87 | K35: 0.000111940851
A36: 3. 61 - 90 Days | B36: 61 - 90 Days | E36: =IFERROR(VLOOKUP(A36,'[8]Arrears Reporting'!$A$1:$D$5,3,FALSE),0) -> 2 | F36: =IFERROR(VLOOKUP(A36,'[8]Arrears Reporting'!$A$1:$D$5,2,FALSE),0) -> 16836.88 | G36: 4.393166971e-05 | I36: 1 | J36: 2144.2 | K36: 5.224847122e-06
A37: 4. 91 - 120 Days | B37: 91 - 120 Days | E37: =IFERROR(VLOOKUP(A37,'[8]Arrears Reporting'!$A$1:$D$5,3,FALSE),0) -> 0 | F37: =IFERROR(VLOOKUP(A37,'[8]Arrears Reporting'!$A$1:$D$5,2,FALSE),0) -> 0 | G37: 0 | I37: 0 | J37: 0 | K37: 0
A38: 5. 121 - 150 Days | B38: 121 - 150 Days | E38: =IFERROR(VLOOKUP(A38,'[8]Arrears Reporting'!$A$1:$D$5,3,FALSE),0) -> 0 | F38: =IFERROR(VLOOKUP(A38,'[8]Arrears Reporting'!$A$1:$D$5,2,FALSE),0) -> 0 | G38: 0 | I38: 0 | J38: 0 | K38: 0
A39: 6. 151 - 180 Days | B39: 151 - 180 Days | E39: =IFERROR(VLOOKUP(A39,'[8]Arrears Reporting'!$A$1:$D$5,3,FALSE),0) -> 0 | F39: =IFERROR(VLOOKUP(A39,'[8]Arrears Reporting'!$A$1:$D$5,2,FALSE),0) -> 0 | G39: 0 | I39: 0 | J39: 0 | K39: 0
B40: Total | E40: =SUM(E34:E39) -> 3359 | F40: =SUM(F34:F39) -> 219336.75 | G40: =SUM(G34:G39) -> 0.0005723049434 | I40: 3402 | J40: 327322.77 | K40: 0.00079759884
B41: * Expressed as a % of Aggreg. Rec. closing bal. | F41: > 30 days | G41: =SUM(G35:G39) -> 6.712526219e-05 | J41: > 30 days | K41: 0.0001171656981
A43: 0 - 30 Days | B43: Account Balances in Arrears
A44: 1. 0 - 30 Days | B44: 0 - 30 Days | E44: =IFERROR(VLOOKUP(A44,'[8]Arrears Reporting'!$A$1:$D$5,3,FALSE),0) -> 3354 | F44: =IFERROR(VLOOKUP(A44,'[8]Arrears Reporting'!$A$1:$D$5,4,FALSE),0) -> 382732142.2 | G44: =F44/F$50 -> 0.9986447643 | I44: 3400 | J44: 410108423.9 | K44: 0.9993255379
A45: 2. 31 - 60 Days | B45: 31 - 60 Days | E45: =IFERROR(VLOOKUP(A45,'[8]Arrears Reporting'!$A$1:$D$5,3,FALSE),0) -> 3 | F45: =IFERROR(VLOOKUP(A45,'[8]Arrears Reporting'!$A$1:$D$5,4,FALSE),0) -> 196286.38 | G45: =F45/F$50 -> 0.0005121607099 | I45: 1 | J45: 205758.3 | K45: 0.0005013784449
A46: 3. 61 - 90 Days | B46: 61 - 90 Days | E46: =IFERROR(VLOOKUP(A46,'[8]Arrears Reporting'!$A$1:$D$5,3,FALSE),0) -> 2 | F46: =IFERROR(VLOOKUP(A46,'[8]Arrears Reporting'!$A$1:$D$5,4,FALSE),0) -> 323109.8 | G46: 0.0008430750241 | I46: 1 | J46: 71030.96 | K46: 0.0001730836242
A47: 4. 91 - 120 Days | B47: 91 - 120 Days | E47: =IFERROR(VLOOKUP(A47,'[8]Arrears Reporting'!$A$1:$D$5,3,FALSE),0) -> 0 | F47: =IFERROR(VLOOKUP(A47,'[8]Arrears Reporting'!$A$1:$D$5,4,FALSE),0) -> 0 | G47: =F47/F$50 -> 0 | I47: 0 | J47: 0 | K47: 0
A48: 5. 121 - 150 Days | B48: 121 - 150 Days | E48: =IFERROR(VLOOKUP(A48,'[8]Arrears Reporting'!$A$1:$D$5,3,FALSE),0) -> 0 | F48: =IFERROR(VLOOKUP(A48,'[8]Arrears Reporting'!$A$1:$D$5,4,FALSE),0) -> 0 | G48: =F48/F$50 -> 0 | I48: 0 | J48: 0 | K48: 0
A49: 6. 151 - 180 Days | B49: 151 - 180 Days | E49: =IFERROR(VLOOKUP(A49,'[8]Arrears Reporting'!$A$1:$D$5,3,FALSE),0) -> 0 | F49: =IFERROR(VLOOKUP(A49,'[8]Arrears Reporting'!$A$1:$D$5,4,FALSE),0) -> 0 | G49: =F49/F$50 -> 0 | I49: 0 | J49: 0 | K49: 0
B50: Total | E50: =SUM(E44:E49) -> 3359 | F50: =SUM(F44:F49) -> 383251538.4 | G50: =SUM(G44:G49) -> 1 | I50: 3402 | J50: 410385213.2 | K50: 1
A51: NSW | F51: > 30 days | G51: =SUM(G45:G49) -> 0.001355235734 | J51: > 30 days | K51: 0.0006744620691
F52: >90 days | G52: =SUM(G47:G49) -> 0 | J52: >90 days | K52: 0
A54: VIC | B54: Geographic Distribution
A55: NSW | B55: New South Wales | E55: =F55/F$63 -> 0.2873860314 | F55: =IFERROR(VLOOKUP(A55,'[8]Geographic '!$A$1:$C$9,3,FALSE),0) -> 110141138.7 | I55: 0.2873614591 | J55: 117928893.7
A56: VIC | B56: Victoria | E56: =F56/F$63 -> 0.2080030829 | F56: =IFERROR(VLOOKUP(A56,'[8]Geographic '!$A$1:$C$9,3,FALSE),0) -> 79717501.5 | I56: 0.2030790641 | J56: 83340645
A57: QLD | B57: Queensland | E57: 0.1217068687 | F57: =IFERROR(VLOOKUP(A57,'[8]Geographic '!$A$1:$C$9,3,FALSE),0) -> 46644344.66 | I57: 0.1278874537 | J57: 52483119.94
A58: SA | B58: South Australia | E58: 0.1811069481 | F58: =IFERROR(VLOOKUP(A58,'[8]Geographic '!$A$1:$C$9,3,FALSE),0) -> 69409516.46 | I58: 0.1772651086 | J58: 72746979.4
A59: NT | B59: Northern Territory | E59: 0 | F59: =IFERROR(VLOOKUP(A59,'[8]Geographic '!$A$1:$C$9,3,FALSE),0) -> 0 | I59: 0 | J59: 0
A60: ACT | B60: Australian Capital Territory | E60: 0.0001538426962 | F60: =IFERROR(VLOOKUP(A60,'[8]Geographic '!$A$1:$C$9,3,FALSE),0) -> 58960.45 | I60: 0.0001579493313 | J60: 64820.07
A61: TAS | B61: Tasmania | E61: 0.008438010877 | F61: =IFERROR(VLOOKUP(A61,'[8]Geographic '!$A$1:$C$9,3,FALSE),0) -> 3233880.65 | I61: 0.008430941415 | J61: 3459933.69
A62: WA | B62: Western Australia | E62: 0.1932052154 | F62: =IFERROR(VLOOKUP(A62,'[8]Geographic '!$A$1:$C$9,3,FALSE),0) -> 74046196.03 | I62: 0.1958180238 | J62: 80360821.43
B63: Total | E63: =SUM(E55:E62) -> 1 | F63: =SUM(F55:F62) -> 383251538.4 | I63: 1 | J63: 410385213.2
A64: AG | G64: =E13-F63 -> 0 | K64: 0
A65: CE | B65: Top Industry Distribution
A66: AGRICULTURAL MACHINERY | B66: Agricultural | E66: =F66/F$69 -> 0.9287467551 | F66: =IFERROR(VLOOKUP(A66,'[8]Top Industry'!$A$1:$C$4,3,FALSE),) -> 355943622.7 | I66: 0.9279649141 | J66: 380823079.1
A67: CONSTRUCTION EQUIPMENT | B67: Construction | E67: =F67/F$69 -> 0.07125324489 | F67: =IFERROR(VLOOKUP(A67,'[8]Top Industry'!$A$1:$C$4,3,FALSE),) -> 27307915.72 | I67: 0.07203508589 | J67: 29562134.08
A68: MOTOR VEHICLE - AG | B68: Motor Vehicle AG | E68: =F68/F$69 -> 0 | F68: =IFERROR(VLOOKUP(A68,'[8]Top Industry'!$A$1:$C$4,3,FALSE),) -> 0 | I68: 0 | J68: 0
B69: Total | E69: =SUM(E66:E68) -> 1 | F69: =SUM(F66:F68) -> 383251538.4 | G69: =F63-F69 -> 0 | I69: 1 | J69: 410385213.2 | K69: 0
A70: COMBINE
A71: 40-100 HP TRACTOR | B71: Collateral Types
A72: 100<140 HP TRACTOR | B72: 100<140 HP TRACTOR | E72: =IFERROR(F72/F$104,0) -> 0.1007218431 | F72: =IFERROR(VLOOKUP(A72,[8]Collateral!$A$1:$C$34,3,FALSE),"") -> 38601801.33 | I72: 0.1005149474 | J72: 41249848.1
A73: 4 EWD TRACTORS | B73: 4 EWD TRACTORS | E73: 0.09838296406 | F73: =IFERROR(VLOOKUP(A73,[8]Collateral!$A$1:$C$34,3,FALSE),"") -> 37705422.33 | I73: 0.1050830525 | J73: 43124530.91
A74: 40<60 HP TRACTOR | B74: 40<60 HP TRACTOR | E74: 0.01297568409 | F74: =IFERROR(VLOOKUP(A74,[8]Collateral!$A$1:$C$34,3,FALSE),"") -> 4972950.89 | I74: 0.01318187027 | J74: 5409644.64
A75: 4WD Vehicle | B75: 4WD Vehicle | E75: 0.003991736801 | F75: =IFERROR(VLOOKUP(A75,[8]Collateral!$A$1:$C$34,3,FALSE),"") -> 1529839.27 | I75: 0.003786480653 | J75: 1553915.67
A76: 60<100 HP TRACTOR | B76: 60<100 HP TRACTOR | E76: 0.04642114112 | F76: =IFERROR(VLOOKUP(A76,[8]Collateral!$A$1:$C$34,3,FALSE),"") -> 17790973.75 | I76: 0.04693056209 | J76: 19259608.73
A77: BACKHOE | B77: BACKHOE | E77: 0.0007407284291 | F77: =IFERROR(VLOOKUP(A77,[8]Collateral!$A$1:$C$34,3,FALSE),"") -> 283885.31 | I77: 0.0007233001835 | J77: 296831.7
A78: BALERS, WINDROWERS, MOWERS, RAKES | B78: BALERS, WINDROWERS, MOWERS, RAKES | E78: 0.02473187849 | F78: =IFERROR(VLOOKUP(A78,[8]Collateral!$A$1:$C$34,3,FALSE),"") -> 9478530.48 | I78: 0.02501200821 | J78: 10264558.32
A79: COMBINES | B79: COMBINES | E79: 0.3336536982 | F79: =IFERROR(VLOOKUP(A79,[8]Collateral!$A$1:$C$34,3,FALSE),"") -> 127873293.1 | I79: 0.327060747 | J79: 134220894.4
A80: COMPACT TRACK LOADER | B80: COMPACT TRACK LOADER | E80: 0.01319866905 | F80: =IFERROR(VLOOKUP(A80,[8]Collateral!$A$1:$C$34,3,FALSE),"") -> 5058410.22 | I80: 0.01342818501 | J80: 5510728.57
A81: COMPACT WHEEL LOADER | B81: COMPACT WHEEL LOADER | E81: 0.0007305445691 | F81: =IFERROR(VLOOKUP(A81,[8]Collateral!$A$1:$C$34,3,FALSE),"") -> 279982.33 | I81: 0.0007218148717 | J81: 296222.15
A82: CRAWLER EXCAVATOR | B82: CRAWLER EXCAVATOR | E82: 0.01354809351 | F82: =IFERROR(VLOOKUP(A82,[8]Collateral!$A$1:$C$34,3,FALSE),"") -> 5192327.68 | I82: 0.01363802352 | J82: 5596843.19
A83: CULTIVATORS,SEEDERS, HARROWS | B83: CULTIVATORS,SEEDERS, HARROWS | E83: 0.01342730065 | F83: =IFERROR(VLOOKUP(A83,[8]Collateral!$A$1:$C$34,3,FALSE),"") -> 5146033.63 | I83: 0.01294854875 | J83: 5313892.94
A84: DRILL | B84: DRILL | E84: 0.0009270036109 | F84: =IFERROR(VLOOKUP(A84,[8]Collateral!$A$1:$C$34,3,FALSE),"") -> 355275.56 | I84: 0.0008657123809 | J84: 355275.56
A85: EXCAVATORS / GRADERS | B85: EXCAVATORS / GRADERS | E85: 0.0003003542281 | F85: =IFERROR(VLOOKUP(A85,[8]Collateral!$A$1:$C$34,3,FALSE),"") -> 115111.22 | I85: 0.0003181265694 | J85: 130554.44
A86: FEEDERS, MIXERS, WAGONS, BINS, FEED STORAGE | B86: FEEDERS, MIXERS, WAGONS, BINS, FEED STORAGE | E86: 0.0002577811701 | F86: =IFERROR(VLOOKUP(A86,[8]Collateral!$A$1:$C$34,3,FALSE),"") -> 98795.03 | I86: 0.0002495211735 | J86: 102399.8
A87: FRONT END LOADER | B87: FRONT END LOADER | E87: 0.001190239632 | F87: =IFERROR(VLOOKUP(A87,[8]Collateral!$A$1:$C$34,3,FALSE),"") -> 456161.17 | I87: 0.001159013348 | J87: 475641.94
A88: FRONTS | B88: FRONTS | E88: 0.00431553678 | F88: =IFERROR(VLOOKUP(A88,[8]Collateral!$A$1:$C$34,3,FALSE),"") -> 1653936.11 | I88: 0.004632208201 | J88: 1900989.75
A89: GRADER | B89: GRADER | E89: 0.0007141219605 | F89: =IFERROR(VLOOKUP(A89,[8]Collateral!$A$1:$C$34,3,FALSE),"") -> 273688.34 | I89: 0.0006945227334 | J89: 285021.86
A90: HARVESTERS - Other | B90: HARVESTERS - Other | E90: 0.0101431729 | F90: =IFERROR(VLOOKUP(A90,[8]Collateral!$A$1:$C$34,3,FALSE),"") -> 3887386.62 | I90: 0.01004695027 | J90: 4123119.83
A91: IRRIGATION EQUIPMENT | B91: IRRIGATION EQUIPMENT | E91: 0.001254469172 | F91: =IFERROR(VLOOKUP(A91,[8]Collateral!$A$1:$C$34,3,FALSE),"") -> 480777.24 | I91: 0.001230692856 | J91: 505058.15
A92: MIDI CRAWLER EXCAVATOR | B92: MIDI CRAWLER EXCAVATOR | E92: 0.0008286255844 | F92: =IFERROR(VLOOKUP(A92,[8]Collateral!$A$1:$C$34,3,FALSE),"") -> 317572.03 | I92: 0.0008451056199 | J92: 346818.85
A93: MINI EXCAVATOR | B93: MINI EXCAVATOR | E93: 0.01706366004 | F93: =IFERROR(VLOOKUP(A93,[8]Collateral!$A$1:$C$34,3,FALSE),"") -> 6539673.96 | I93: 0.01734885942 | J93: 7119715.37
A94: OTHER AG | B94: OTHER AG | E94: 0.009073293859 | F94: =IFERROR(VLOOKUP(A94,[8]Collateral!$A$1:$C$34,3,FALSE),"") -> 3477353.83 | I94: 0.008849661253 | J94: 3631770.12
A95: OTHER CE | B95: OTHER CE | E95: 0.0001462353425 | F95: =IFERROR(VLOOKUP(A95,[8]Collateral!$A$1:$C$34,3,FALSE),"") -> 56044.92 | I95: 0.0001515592375 | J95: 62197.67
A96: OVER 140 HP TRACTOR | B96: OVER 140 HP TRACTOR | E96: 0.1958286229 | F96: =IFERROR(VLOOKUP(A96,[8]Collateral!$A$1:$C$34,3,FALSE),"") -> 75051621 | I96: 0.1933338114 | J96: 79341337.39
A97: SCRAPERS | B97: SCRAPERS | E97: 0.0007169686288 | F97: =IFERROR(VLOOKUP(A97,[8]Collateral!$A$1:$C$34,3,FALSE),"") -> 274779.33 | I97: 0.000736331501 | J97: 302179.56
A98: SKID STEER LOADER | B98: SKID STEER LOADER | E98: 0.016469758 | F98: =IFERROR(VLOOKUP(A98,[8]Collateral!$A$1:$C$34,3,FALSE),"") -> 6312060.09 | I98: 0.01664169164 | J98: 6829504.17
A99: SKIDSTEER / UNILOADER | B99: SKIDSTEER / UNILOADER | E99: 0.000220316976 | F99: =IFERROR(VLOOKUP(A99,[8]Collateral!$A$1:$C$34,3,FALSE),"") -> 84436.82 | I99: 0.0002341051941 | J99: 96073.31
A100: SPRAYING EQUIPMENT | B100: SPRAYING EQUIPMENT | E100: 0.07039003812 | F100: =IFERROR(VLOOKUP(A100,[8]Collateral!$A$1:$C$34,3,FALSE),"") -> 26977090.4 | I100: 0.07196606077 | J100: 29533807.19
A101: TRENCHERS | B101: TRENCHERS | E101: 0.0003389736426 | F101: =IFERROR(VLOOKUP(A101,[8]Collateral!$A$1:$C$34,3,FALSE),"") -> 129912.17 | I101: 0.0003548577905 | J101: 145628.39
A102: UNDER 40 HP TRACTORS | B102: UNDER 40 HP TRACTORS | E102: 0.001060350421 | F102: =IFERROR(VLOOKUP(A102,[8]Collateral!$A$1:$C$34,3,FALSE),"") -> 406380.93 | I102: 0.001113065616 | J102: 456785.67
A103: WHEEL LOADERS | B103: WHEEL LOADERS | E103: 0.006236194928 | F103: =IFERROR(VLOOKUP(A103,[8]Collateral!$A$1:$C$34,3,FALSE),"") -> 2390031.3 | I103: 0.006198602601 | J103: 2543814.85
B104: Total | E104: =SUM(E72:E103) -> 1 | F104: =SUM(F72:F103) -> 383251538.4 | G104: =F69-F104 -> 0 | I104: 1 | J104: 410385213.2 | K104: -5.36441803e-07
A105: $ 0 - $25,000
A106: $ 25,001 to $50,000 | B106: Contract Balance Distribution
A107: $0 - $25,000 | B107: $ 0 - $25,000 | E107: =IFERROR(F107/F$118,0) -> 0.02555686834 | F107: =IFERROR(VLOOKUP(A107,'[8] Balance Distribution'!$A$1:$C$13,3,FALSE),"") -> 9794709.11 | I107: 0.02081679904 | J107: 8542906.51
A108: $25,001 - $50,000 | B108: $ 25,001 to $50,000 | E108: =IFERROR(F108/F$118,0) -> 0.08171591493 | F108: =IFERROR(VLOOKUP(A108,'[8] Balance Distribution'!$A$1:$C$13,3,FALSE),"") -> 31317750.11 | I108: 0.07817960331 | J108: 32083753.17
A109: $50,001 - $75,000 | B109: $ 50,001 to $75,000 | E109: 0.07659304401 | F109: =IFERROR(VLOOKUP(A109,'[8] Balance Distribution'!$A$1:$C$13,3,FALSE),"") -> 29354401.95 | I109: 0.0744063609 | J109: 30535270.28
A110: $75,001 - $100,000 | B110: $ 75,001 to $100,000 | E110: 0.05893560337 | F110: =IFERROR(VLOOKUP(A110,'[8] Balance Distribution'!$A$1:$C$13,3,FALSE),"") -> 22587160.66 | I110: 0.0594009675 | J110: 24377278.71
A111: $100,001 - $125,000 | B111: $100,001 to $125,000 | E111: 0.0513872266 | F111: =IFERROR(VLOOKUP(A111,'[8] Balance Distribution'!$A$1:$C$13,3,FALSE),"") -> 19694233.65 | I111: 0.05168921196 | J111: 21212488.27
A112: $125,001 - $150,000 | B112: $125,001 to $150,000 | E112: 0.04562057536 | F112: =IFERROR(VLOOKUP(A112,'[8] Balance Distribution'!$A$1:$C$13,3,FALSE),"") -> 17484155.69 | I112: 0.04220120877 | J112: 17318752.06
A113: $150,001 - $200,000 | B113: $150,000 to $200,000 | E113: 0.1016143558 | F113: =IFERROR(VLOOKUP(A113,'[8] Balance Distribution'!$A$1:$C$13,3,FALSE),"") -> 38943858.18 | I113: 0.09555164012 | J113: 39212980.2
A114: $200,001 - $300,000 | B114: $200,001 to $300,000 | E114: 0.2228507824 | F114: =IFERROR(VLOOKUP(A114,'[8] Balance Distribution'!$A$1:$C$13,3,FALSE),"") -> 85407905.21 | I114: 0.2182221853 | J114: 89555158.05
A115: $300,001 - $400,000 | B115: $300,001 to $400,000 | E115: 0.1677875304 | F115: =IFERROR(VLOOKUP(A115,'[8] Balance Distribution'!$A$1:$C$13,3,FALSE),"") -> 64304829.17 | I115: 0.1699388093 | J115: 69740374.5
A116: $400,001 - $500,000 | B116: $400,001 to $500,000 | E116: 0.0917364823 | F116: =IFERROR(VLOOKUP(A116,'[8] Balance Distribution'!$A$1:$C$13,3,FALSE),"") -> 35158147.97 | I116: 0.1000432276 | J116: 41056261.3
A117: $500,001+ | B117: $500,000+ | E117: 0.07620161641 | F117: =IFERROR(VLOOKUP(A117,'[8] Balance Distribution'!$A$1:$C$13,3,FALSE),"") -> 29204386.72 | I117: 0.08954998611 | J117: 36749990.14
A118: $200,001 to $300,000 | B118: Total | E118: =SUM(E107:E117) -> 1 | F118: =SUM(F107:F117) -> 383251538.4 | G118: =F104-F118 -> 0 | I118: 1 | J118: 410385213.2 | K118: 0
A119: 0
A120: 0 to 5 | B120: Residual / Balloon Payment Distribution
A121: 0 | B121: 0 | E121: =IFERROR(F121/F$131,0) -> 0.8704298744 | F121: =IFERROR(VLOOKUP(A121,'[8]Residual '!$A$1:$C$11,3,FALSE),"") -> 333593588.5 | I121: 0.870280567 | J121: 357150276
A122: 0 to 5 | B122: 0 to 5 | E122: =IFERROR(F122/F$131,0) -> 0 | F122: =IFERROR(VLOOKUP(A122,'[8]Residual '!$A$1:$C$11,3,FALSE),"") ->  | I122: 0
A123: 6 to 10 | B123: 06 to 10 | E123: 0.001963191963 | F123: =IFERROR(VLOOKUP(A123,'[8]Residual '!$A$1:$C$11,3,FALSE),"") -> 752396.34 | I123: 0.00190546997 | J123: 781976.7
A124: 11 to 15 | B124: 11 to 15 | E124: 0.002021091665 | F124: =IFERROR(VLOOKUP(A124,'[8]Residual '!$A$1:$C$11,3,FALSE),"") -> 774586.49 | I124: 0.001944512824 | J124: 797999.31
A125: 16 to 20 | B125: 16 to 20 | E125: 0.0237280039 | F125: =IFERROR(VLOOKUP(A125,'[8]Residual '!$A$1:$C$11,3,FALSE),"") -> 9093794 | I125: 0.02404679056 | J125: 9868447.27
A126: 21 to 25 | B126: 21 to 25 | E126: 0.01116499111 | F126: =IFERROR(VLOOKUP(A126,'[8]Residual '!$A$1:$C$11,3,FALSE),"") -> 4279000.02 | I126: 0.01053520339 | J126: 4323491.69
A127: 26 to 30 | B127: 26 to 30 | E127: 0.04289483361 | F127: =IFERROR(VLOOKUP(A127,'[8]Residual '!$A$1:$C$11,3,FALSE),"") -> 16439510.97 | I127: 0.04197909485 | J127: 17227599.79
A128: 31 to 35 | B128: 31 to 35 | E128: 0.01368344649 | F128: =IFERROR(VLOOKUP(A128,'[8]Residual '!$A$1:$C$11,3,FALSE),"") -> 5244201.92 | I128: 0.0168276893 | J128: 6905834.86
A129: 36 to 40 | B129: 36 to 40 | E129: 0.02192356869 | F129: =IFERROR(VLOOKUP(A129,'[8]Residual '!$A$1:$C$11,3,FALSE),"") -> 8402241.43 | I129: 0.02103102401 | J129: 8630821.27
A130: 41+ % | B130: 41+% | E130: 0.01219099813 | F130: =IFERROR(VLOOKUP(A130,'[8]Residual '!$A$1:$C$11,3,FALSE),"") -> 4672218.79 | I130: 0.01144964808 | J130: 4698766.27
E131: =SUM(E121:E130) -> 1 | F131: =SUM(F121:F130) -> 383251538.4 | G131: =F118-F131 -> 0 | I131: 1 | J131: 410385213.2 | K131: 0
A132: 2004 Q1
A133: 2004 Q2 | B133: Quarter of Maturity Distribution
A134: =RIGHT(B134,2)&LEFT(B134,4) -> Q42018 | B134: 2018Q4 | E134: =F134/F$157 -> 0 | F134: =IFERROR(VLOOKUP(A134,'[8]Quarter of Maturity Dist'!$A$1:$C$23,3,FALSE),0) -> 0 | I134: 0.003885587562 | J134: 1594587.68
A135: Q12019 | B135: 2019Q1 | E135: 0.005452895554 | F135: =IFERROR(VLOOKUP(A135,'[8]Quarter of Maturity Dist'!$A$1:$C$23,3,FALSE),0) -> 2089830.61 | I135: 0.005226231212 | J135: 2144768.01
A136: =RIGHT(B136,2)&LEFT(B136,4) -> Q22019 | B136: 2019Q2 | E136: 0.0008260884256 | F136: =IFERROR(VLOOKUP(A136,'[8]Quarter of Maturity Dist'!$A$1:$C$23,3,FALSE),0) -> 316599.66 | I136: 0.0009227034938 | J136: 378663.87
A137: =RIGHT(B137,2)&LEFT(B137,4) -> Q32019 | B137: 2019Q3 | E137: 0.002056852017 | F137: =IFERROR(VLOOKUP(A137,'[8]Quarter of Maturity Dist'!$A$1:$C$23,3,FALSE),0) -> 788291.7 | I137: 0.00212440203 | J137: 871823.18
A138: Q42019 | B138: 2019Q4 | E138: 0.001747141036 | F138: =IFERROR(VLOOKUP(A138,'[8]Quarter of Maturity Dist'!$A$1:$C$23,3,FALSE),0) -> 669594.49 | I138: 0.002133772982 | J138: 875668.88
A139: Q12020 | B139: 2020Q1 | E139: 0.0128488106 | F139: =IFERROR(VLOOKUP(A139,'[8]Quarter of Maturity Dist'!$A$1:$C$23,3,FALSE),0) -> 4924326.43 | I139: 0.01280247655 | J139: 5253947.07
A140: Q22020 | B140: 2020Q2 | E140: 0.01609848951 | F140: =IFERROR(VLOOKUP(A140,'[8]Quarter of Maturity Dist'!$A$1:$C$23,3,FALSE),0) -> 6169770.87 | I140: 0.01608000381 | J140: 6598995.79
A141: Q32020 | B141: 2020Q3 | E141: 0.01612788655 | F141: =IFERROR(VLOOKUP(A141,'[8]Quarter of Maturity Dist'!$A$1:$C$23,3,FALSE),0) -> 6181037.33 | I141: 0.01714681227 | J141: 7036798.21
A142: Q42020 | B142: 2020Q4 | E142: 0.02924016737 | F142: =IFERROR(VLOOKUP(A142,'[8]Quarter of Maturity Dist'!$A$1:$C$23,3,FALSE),0) -> 11206339.13 | I142: 0.03198479874 | J142: 13126088.45
A143: Q12021 | B143: 2021Q1 | E143: 0.05500550865 | F143: =IFERROR(VLOOKUP(A143,'[8]Quarter of Maturity Dist'!$A$1:$C$23,3,FALSE),0) -> 21080945.81 | I143: 0.05743718631 | J143: 23571371.95
A144: Q22021 | B144: 2021Q2 | E144: 0.03217406106 | F144: =IFERROR(VLOOKUP(A144,'[8]Quarter of Maturity Dist'!$A$1:$C$23,3,FALSE),0) -> 12330758.4 | I144: 0.03216050829 | J144: 13198197.05
A145: Q32021 | B145: 2021Q3 | E145: 0.02499442126 | F145: =IFERROR(VLOOKUP(A145,'[8]Quarter of Maturity Dist'!$A$1:$C$23,3,FALSE),0) -> 9579150.4 | I145: 0.02446015652 | J145: 10038086.55
A146: Q42021 | B146: 2021Q4 | E146: 0.02908386006 | F146: =IFERROR(VLOOKUP(A146,'[8]Quarter of Maturity Dist'!$A$1:$C$23,3,FALSE),0) -> 11146434.11 | I146: 0.03207319927 | J146: 13162366.72
A147: Q12022 | B147: 2022Q1 | E147: 0.1766014379 | F147: =IFERROR(VLOOKUP(A147,'[8]Quarter of Maturity Dist'!$A$1:$C$23,3,FALSE),0) -> 67682772.78 | I147: 0.1743152664 | J147: 71536407.76
A148: Q22022 | B148: 2022Q2 | E148: 0.1448614054 | F148: =IFERROR(VLOOKUP(A148,'[8]Quarter of Maturity Dist'!$A$1:$C$23,3,FALSE),0) -> 55518356.46 | I148: 0.1411568684 | J148: 57928691.55
A149: Q32022 | B149: 2022Q3 | E149: 0.09112838914 | F149: =IFERROR(VLOOKUP(A149,'[8]Quarter of Maturity Dist'!$A$1:$C$23,3,FALSE),0) -> 34925095.33 | I149: 0.08852854626 | J149: 36330806.33
A150: Q42022 | B150: 2022Q4 | E150: 0.1088387741 | F150: =IFERROR(VLOOKUP(A150,'[8]Quarter of Maturity Dist'!$A$1:$C$23,3,FALSE),0) -> 41712627.63 | I150: 0.1104300206 | J150: 45318847.53
A151: Q12023 | B151: 2023Q1 | E151: 0.1901408155 | F151: =IFERROR(VLOOKUP(A151,'[8]Quarter of Maturity Dist'!$A$1:$C$23,3,FALSE),0) -> 72871760.05 | I151: 0.187361633 | J151: 76890443.69
A152: Q22023 | B152: 2023Q2 | E152: 0.04711531151 | F152: =IFERROR(VLOOKUP(A152,'[8]Quarter of Maturity Dist'!$A$1:$C$23,3,FALSE),0) -> 18057015.62 | I152: 0.04464541058 | J152: 18321816.34
A153: Q32023 | B153: 2023Q3 | E153: 0.002798376634 | F153: =IFERROR(VLOOKUP(A153,'[8]Quarter of Maturity Dist'!$A$1:$C$23,3,FALSE),0) -> 1072482.15 | I153: 0.002734771439 | J153: 1122309.76
A154: Q42023 | B154: 2023Q4 | E154: 0.009949528019 | F154: =IFERROR(VLOOKUP(A154,'[8]Quarter of Maturity Dist'!$A$1:$C$23,3,FALSE),0) -> 3813171.92 | I154: 0.009357154221 | J154: 3840037.73
A155: Q12024 | B155: 2024Q1 | E155: 0.002909779683 | F155: =IFERROR(VLOOKUP(A155,'[8]Quarter of Maturity Dist'!$A$1:$C$23,3,FALSE),0) -> 1115177.54 | I155: 0.003032490085 | J155: 1244489.09
E157: =SUM(E134:E155) -> 1 | F157: =SUM(F134:F156) -> 383251538.4 | G157: =F131-F157 -> 0 | I157: 1 | J157: 410385213.2 | K157: 0
A158: 0 to 6 months
A159: 07 to 12 months | B159: Seasoning Distribution
A160: 0 to 6 months | B160: 0 to 6 months | E160: =F160/F$171 -> 0 | F160: =IFERROR(VLOOKUP(A160,'[8]Seasoning Distribution'!$A$1:$C$6,3,FALSE),0) -> 0 | I160: 0 | J160: 0
A161: 07 to 12 months | B161: 07 to 12 months | E161: =F161/F$171 -> 0.2178697716 | F161: =IFERROR(VLOOKUP(A161,'[8]Seasoning Distribution'!$A$1:$C$6,3,FALSE),0) -> 83498925.16 | I161: 0.4399251713 | J161: 180538785.2
A162: 13 to 18 months | B162: 13 to 18 months | E162: 0.5804329689 | F162: =IFERROR(VLOOKUP(A162,'[8]Seasoning Distribution'!$A$1:$C$6,3,FALSE),0) -> 222451828.3 | I162: 0.513586857 | J162: 210768451.8
A163: 19 to 24 months | B163: 19 to 24 months | E163: 0.2005346615 | F163: =IFERROR(VLOOKUP(A163,'[8]Seasoning Distribution'!$A$1:$C$6,3,FALSE),0) -> 76855217.52 | I163: 0.04645827159 | J163: 19065787.69
A164: 25 to 30 months | B164: 25 to 30 months | E164: 0.001162597969 | F164: =IFERROR(VLOOKUP(A164,'[8]Seasoning Distribution'!$A$1:$C$6,3,FALSE),0) -> 445567.46 | I164: 2.970007108e-05 | J164: 12188.47
A165: 31 to 36 months | B165: 31 to 36 months | E165: 0 | F165: =IFERROR(VLOOKUP(A165,'[8]Seasoning Distribution'!$A$1:$C$6,3,FALSE),0) -> 0 | I165: 0 | J165: 0
A166: 37 to 42 months | B166: 37 to 42 months | E166: 0 | F166: =IFERROR(VLOOKUP(A166,'[8]Seasoning Distribution'!$A$1:$C$6,3,FALSE),0) -> 0 | I166: 0 | J166: 0
A167: 43 to 48 months | B167: 43 to 48 months | E167: 0 | F167: =IFERROR(VLOOKUP(A167,'[8]Seasoning Distribution'!$A$1:$C$6,3,FALSE),0) -> 0 | I167: 0 | J167: 0
A168: 49 to 54 months | B168: 49 to 54 months | E168: 0 | F168: =IFERROR(VLOOKUP(A168,'[8]Seasoning Distribution'!$A$1:$C$6,3,FALSE),0) -> 0 | I168: 0 | J168: 0
A169: 55 to 60 months | B169: 55 to 60 months | E169: 0 | F169: =IFERROR(VLOOKUP(A169,'[8]Seasoning Distribution'!$A$1:$C$6,3,FALSE),0) -> 0 | I169: 0 | J169: 0
A170: 60+ months | B170: 61 to 72 months | E170: 0 | F170: =IFERROR(VLOOKUP(A170,'[8]Seasoning Distribution'!$A$1:$C$6,3,FALSE),0) -> 0 | I170: 0 | J170: 0
A171: 61 to 72 months | B171: Total | E171: =SUM(E160:E170) -> 1 | F171: =SUM(F160:F170) -> 383251538.4 | G171: =F157-F171 -> 0 | I171: 1 | J171: 410385213.2 | K171: 0
B173: Remaining Term Distribution
A174: 0 - 12 months | B174: 0-12 Months | E174: =F174/$J$180 -> 0.01144024623 | F174: =IFERROR(VLOOKUP(A174,'[8]Remaining Term'!$A$1:$C$8,3,FALSE),0) -> 4694907.89 | I174: 0.01272945984 | J174: 5223982.09
A175: 13 - 24 months | B175: 13-24 Months | E175: =F175/$J$180 -> 0.08621010905 | F175: =IFERROR(VLOOKUP(A175,'[8]Remaining Term'!$A$1:$C$8,3,FALSE),0) -> 35379353.98 | I175: 0.06598208939 | J175: 27078073.82
A176: 25 - 36 months | B176: 25-36 Months | E176: 0.1433337036 | F176: =IFERROR(VLOOKUP(A176,'[8]Remaining Term'!$A$1:$C$8,3,FALSE),0) -> 58822032.51 | I176: 0.1429639985 | J176: 58670310.99
A177: 37 - 48 months | B177: 37-48 Months | E177: 0.5179504306 | F177: =IFERROR(VLOOKUP(A177,'[8]Remaining Term'!$A$1:$C$8,3,FALSE),0) -> 212559197.9 | I177: 0.4790101368 | J177: 196578677.1
A178: 49 - 60 months | B178: 49-60 Months | E178: 0.1741086578 | F178: =IFERROR(VLOOKUP(A178,'[8]Remaining Term'!$A$1:$C$8,3,FALSE),0) -> 71451618.63 | I178: 0.2935332471 | J178: 120461704.2
A179: 60+ Months | B179: 60+ Months | E179: 0.0008392786069 | F179: =IFERROR(VLOOKUP(A179,'[8]Remaining Term'!$A$1:$C$8,3,FALSE),0) -> 344427.53 | I179: 0.00578106843 | J179: 2372465
E180: =SUM(E174:E179) -> 0.9338824258 | F180: =SUM(F174:F179) -> 383251538.4 | G180: =F171-F180 -> 0 | I180: 1 | J180: 410385213.2 | K180: 0
B182: Origination LVR Distribution
A183: 01. 10% to 20% | B183: 10% to 20% | E183: =F183/F$199 -> 0.0001018099762 | F183: =IFERROR(VLOOKUP(A183,'[8]LVR Band'!$A$1:$C$11,3,FALSE),0) -> 39018.83 | I183: 9.507854754e-05 | J183: 39018.83
A184: 02. 21% to 30% | B184: 21% to 30% | E184: 0.005542381536 | F184: =IFERROR(VLOOKUP(A184,'[8]LVR Band'!$A$1:$C$11,3,FALSE),0) -> 2124126.25 | I184: 0.005609169912 | J184: 2301920.39
A185: 03. 31% to 40% | B185: 31% to 40% | E185: 0.03001022216 | F185: =IFERROR(VLOOKUP(A185,'[8]LVR Band'!$A$1:$C$11,3,FALSE),0) -> 11501463.81 | I185: 0.02969824101 | J185: 12187718.97
A186: 04. 41% to 50% | B186: 41% to 50% | E186: 0.08472144306 | F186: =IFERROR(VLOOKUP(A186,'[8]LVR Band'!$A$1:$C$11,3,FALSE),0) -> 32469623.39 | I186: 0.08270400043 | J186: 33940498.85
A187: 05. 51% to 60% | B187: 51% to 60% | E187: 0.1319739384 | F187: =IFERROR(VLOOKUP(A187,'[8]LVR Band'!$A$1:$C$11,3,FALSE),0) -> 50579214.92 | I187: 0.1316177566 | J187: 54013981.11
A188: 06. 61% to 70% | B188: 61% to 70% | E188: 0.1667315808 | F188: =IFERROR(VLOOKUP(A188,'[8]LVR Band'!$A$1:$C$11,3,FALSE),0) -> 63900134.86 | I188: 0.1660836256 | J188: 68158264.11
A189: 07. 71% to 80% | B189: 71% to 80% | E189: 0.1766905822 | F189: =IFERROR(VLOOKUP(A189,'[8]LVR Band'!$A$1:$C$11,3,FALSE),0) -> 67716937.45 | I189: 0.1785653592 | J189: 73280583.02
A190: 08. 81% to 90% | B190: 81% to 90% | E190: 0.2137583377 | F190: =IFERROR(VLOOKUP(A190,'[8]LVR Band'!$A$1:$C$11,3,FALSE),0) -> 81923211.79 | I190: 0.2111981617 | J190: 86672602.61
A191: 09. 91% to 100% | B191: 91% to 100% | E191: 0.1904697041 | F191: =IFERROR(VLOOKUP(A191,'[8]LVR Band'!$A$1:$C$11,3,FALSE),0) -> 72997807.12 | I191: 0.1944286069 | J191: 79790625.3
A192: > 100% | B192: > 100% | E192: 0 | F192: =IFERROR(VLOOKUP(A192,'[8]LVR Band'!$A$1:$C$11,3,FALSE),0) -> 0 | I192: 0 | J192: 0
E193: =SUM(E183:E192) -> 1 | F193: =SUM(F183:F192) -> 383251538.4 | G193: =F180-F193 -> 0 | I193: 1 | J193: 410385213.2 | K193: 0
B195: New v Used
A196: New | B196: New | E196: =F196/F$199 -> 0.9499134969 | F196: =IFERROR(VLOOKUP(A196,'[8]New v Used'!$A$1:$C$4,3,FALSE),0) -> 364055809.1 | I196: 0.9490331847 | J196: 389469185.8
A197: USed | B197: Used | E197: =F197/F$199 -> 0.05008650308 | F197: =IFERROR(VLOOKUP(A197,'[8]New v Used'!$A$1:$C$4,3,FALSE),0) -> 19195729.36 | I197: 0.05096681532 | J197: 20916027.37
A198: Used
E199: =SUM(E196:E197) -> 1 | F199: =SUM(F196:F197) -> 383251538.4 | G199: =F193-F199 -> 0 | I199: 1 | J199: 410385213.2 | K199: 0
B201: Contract Type
A202: Finance Lease | B202: Finance Lease | E202: =F202/F$205 -> 0 | F202: =IFERROR(VLOOKUP(A201,'[8]Loan Type'!$A$1:$C$5,3,FALSE),0) -> 0 | I202: 0.01494647883 | J202: 6133813.9
A203: Goods Mortgage | B203: Goods Mortgage | E203: =F203/F$205 -> 0.01538415603 | F203: =IFERROR(VLOOKUP(A202,'[8]Loan Type'!$A$1:$C$5,3,FALSE),0) -> 5867930.83 | I203: 0.9806073427 | J203: 402426753.4
A204: Hire Purchase | B204: Hire Purchase | E204: 0.984615844 | F204: =IFERROR(VLOOKUP(A203,'[8]Loan Type'!$A$1:$C$5,3,FALSE),0) -> 375558961.7 | I204: 0.004446178447 | J204: 1824645.89
E205: =SUM(E202:E204) -> 1 | F205: =SUM(F202:F204) -> 381426892.5 | G205: =F199-F205 -> 1824645.89 | I205: 1 | J205: 410385213.2 | K205: 0
B207: Contract by Source
A208: Non Hardship Refinance | B208: Non Hardship Refinance | E208: =F208/F$210 -> 1 | F208: =IFERROR(VLOOKUP($A208,'[1]Refinance vs Hardship'!$A$1:$C$2,3,FALSE),0) -> 410385213.2 | I208: 1 | J208: 410385213.2
A209: Refinance - Hardship | B209: Hardship Refinance | E209: =F209/F$210 -> 0 | F209: =IFERROR(VLOOKUP($A209,'[1]Refinance vs Hardship'!$A$1:$C$2,3,FALSE),0) -> 0 | I209: 0 | J209: 0
E210: =SUM(E208:E209) -> 1 | F210: =SUM(F208:F209) -> 410385213.2 | G210: =F205-F210 -> -28958320.66 | I210: 1 | J210: 410385213.2 | K210: 0
B212: Payment Frequency Distribution
A213: 6 Consecutive | B213: 6 Consecutive | E213: =F213/F$219 -> 0.01171223434 | F213: =IFERROR(VLOOKUP(A213,'[8]Payment Frequency'!$A$1:$C$8,3,FALSE),0) -> 4488731.83 | I213: 0.01238816996 | J213: 5083921.77
A214: Annual | B214: Annual | E214: 0.6934047486 | F214: =IFERROR(VLOOKUP(A214,'[8]Payment Frequency'!$A$1:$C$8,3,FALSE),0) -> 265748436.6 | I214: 0.6847932104 | J214: 281029007.7
A215: Monthly | B215: Monthly | E215: 0.239776519 | F215: =IFERROR(VLOOKUP(A215,'[8]Payment Frequency'!$A$1:$C$8,3,FALSE),0) -> 91894719.77 | I215: 0.247603824 | J215: 101612948.1
A216: Quarterly | B216: Quarterly | E216: 0.01397017565 | F216: =IFERROR(VLOOKUP(A216,'[8]Payment Frequency'!$A$1:$C$8,3,FALSE),0) -> 5354091.31 | I216: 0.01411436883 | J216: 5792328.26
... 21 more rows
